Cogmind - Beta 16 @@@ ROGUE MODE // 2025.12.11 @ 01:14:36 Player: Parkagirl Result: Destroyed by S-10 Pest with Light Assault Rifle Performance ------------- Evolutions (1) 500 Regions Visited (2) 400 Robots Destroyed (16) 80 Value Destroyed (623) 623 Prototype IDs (3) 60 Alien Tech Used (0) 0 Bonus (200) 200 TOTAL SCORE: 1863 Bonus ------- Pacifist 200 Cogmind --------- Core Integrity 0/400 Matter 296/300 Energy 100/100 System Corruption 0% Temperature Cool (0) Movement Core (400) Ox7 Location -9/Materials Parts ------- > --- POWER (1) -------- (None) > --- PROPULSION (4) --- (None) > --- UTILITY (2) ------ Large Storage Unit > --- WEAPON (2) ------- Hammer > --- INVENTORY (15) --- Light Treads Light Treads Heat Sink Heat Sink Sensor Array ECM Suite Light Armor Plating Beam Rifle Mining Laser Welding Torch Peak State ------------ > --- POWER ------------ Light Nuclear Core > --- PROPULSION ------- Light Treads Light Treads Light Treads Light Treads > --- UTILITY ---------- Large Storage Unit Seismic Detector > --- WEAPON ----------- Improved EM Shotgun Assault Rifle > --- INVENTORY -------- Light Ion Engine Light Treads Light Treads Heat Sink Sensor Array ECM Suite Light Armor Plating EM Pulse Gun Mining Laser Welding Torch Hammer [Rating: 14] Favorites ----------- Power Ion Engine Engine Ion Engine Power Core Light Nuclear Core Propulsion Light Treads Treads Light Treads Leg Aluminum Leg Utility Large Storage Unit Device Seismic Detector Storage Large Storage Unit Weapon EM Pulse Gun Energy Gun EM Pulse Gun Ballistic Gun Assault Rifle Impact Weapon Hammer Build | -11 -10 -9 ------- Run | Yrd Mat Mat Slots Evolved 2 | . . 2 Power . | . . . Propulsion 2 | . . 2 Utility . | . . . Weapon . | . . . Parts Attached 22 | 7 6 9 Power 3 | 2 . 1 Engine 2 | 2 . . Core 1 | . . 1 Reactor . | . . . Propulsion 9 | 2 2 5 Treads 7 | . 2 5 Leg 2 | 2 . . Wheel . | . . . Hover . | . . . Flight . | . . . Utility 5 | 1 3 1 Device 3 | . 2 1 Storage 2 | 1 1 . Processor . | . . . Hackware . | . . . Protection . | . . . Artifact . | . . . Weapon 5 | 2 1 2 Energy Gun 3 | 2 . 1 Energy Cannon . | . . . Ballistic Gun 1 | . 1 . Ballistic Cannon . | . . . Launcher . | . . . Special Weapon . | . . . Impact Weapon 1 | . . 1 Slashing Weapon . | . . . Piercing Weapon . | . . . Special Melee Weapon . | . . . Unidentified Prototypes 1 | . . 1 Parts Lost 15 | . . 15 Power 3 | . . 3 Propulsion 7 | . . 7 Utility 1 | . . 1 Weapon 4 | . . 4 Highest Loss Streak 7 | . . 7 To Critical Strikes . | . . . Average Backups 10 | 2 8 12 Power . | . 1 1 Propulsion 3 | 1 4 3 Utility 2 | . 1 3 Weapon 2 | . 1 2 Tool/Special . | . . . Unused Backups 12 | . 4 8 Power . | . . . Propulsion 5 | . 3 2 Utility 3 | . . 3 Weapon 2 | . . 2 Tool/Special 2 | . 1 1 Average Slot Usage (%) 95 | . 98 94 Engine 10 | . 14 7 Core 1 | . . 1 Treads 30 | . 9 41 Leg 6 | . 18 . Device 10 | . 12 10 Storage 12 | . 14 11 Energy Gun 14 | . 19 11 Ballistic Gun 7 | . 8 7 Peak Build Rating 14 | 6 8 14 Average Rating 8 | 4 7 10 On Entrance 4 | . 6 8 Avg Prop Armor Cover (%) . | . . . Naked Turns . | . . . Heaviest Build 31 | 14 30 31 Greatest Support 80 | 20 40 80 Greatest Overweight (x) 7 | . . 7 Average Overweight (x) . | . . . Largest Inventory Capacity 15 | 8 15 15 Average Capacity 12 | 6 10 15 Most Carried 15 | 6 14 15 Average Carried 10 | 2 8 12 Final Capacity 15 | 8 15 15 Final Carried 14 | 6 14 10 Class Distribution -------------------- 100% | Mutant Dominant Class ---------------- Mutant | -10/Materials Mutant | -9/Materials Resources | -11 -10 -9 ----------- Run | Yrd Mat Mat Matter Collected 564 | 225 . 339 Remotely . | . . . Salvage Created 782 | . . 782 Parts 59 | . . 59 Haulers Intercepted . | . . . Recyclers Shooed . | . . . Parts Field Recycled . | . . . Retrieved Matter . | . . . Parts Self-Destructed . | . . . Prevented . | . . . Parts Restored . | . . . Kills | -11 -10 -9 ------- Run | Yrd Mat Mat Combat Hostiles Destroyed 16 | . . 16 Guns 14 | . . 14 AOE 2 | . . 2 Classes Destroyed 3 | . . 3 Grunt 11 | . . 11 Brawler 1 | . . 1 Sentry 4 | . . 4 Best Kill Streak 3 | . . 3 Combat Bots Only 3 | . . 3 Max Kills in Single Turn 1 | . . 1 Gunslinging . | . . . Exploded 1 | . . 1 Melee . | . . . Uniques/NPCs Destroyed . | . . . Combat | -11 -10 -9 -------- Run | Yrd Mat Mat Hostile Shots Fired 230 | . . 230 Missed 58 | . . 58 Hits 172 | . . 172 Melee 5 | . . 5 Projectile 167 | . . 167 Critical Strikes 4 | . . 4 Damage Taken 2056 | . . 2056 Core 404 | . . 404 Absorbed by Shields . | . . . Core Remaining (%) 100 | 100 100 . Volleys Fired 72 | . 1 71 Largest 2 | . 2 2 Hottest 85 | . 80 85 Shots Fired 108 | . 2 106 Gun 108 | . 2 106 Cannon . | . . . Launcher . | . . . Special . | . . . Kinetic 49 | . . 49 Thermal . | . . . Explosive . | . . . Electromagnetic 59 | . 2 57 Robot Hit Streak 13 | . . 13 Robot Miss Streak 3 | . 2 3 Penetration Max . | . . . Secondary Targets 2 | . . 2 Max Gunslinging Chain 1 | . . 1 Shots Hit Robots 81 | . . 81 Core Hits 34 | 1 . 33 Critical Kills . | . . . Critical Parts Destroyed . | . . . Critical Strikes . | . . . Melee Attacks 1 | . . 1 Impact 1 | . . 1 Slashing . | . . . Piercing . | . . . Sneak Attacks 1 | . . 1 Combat Hostiles . | . . . Follow-up Attacks . | . . . Damage Inflicted 1195 | 1 . 1194 Guns 1067 | . . 1067 Cannons . | . . . Explosions 56 | . . 56 Melee 62 | . . 62 Ramming 10 | 1 . 9 Kinetic 493 | . . 493 Thermal 56 | . . 56 Explosive . | . . . Electromagnetic 574 | . . 574 Impact 62 | . . 62 Slashing . | . . . Piercing . | . . . Highest Corruption . | . . . Average Corruption . | . . . Corruption Purged . | . . . Corruption Blocked . | . . . Overload Shots . | . . . Overflow Damage 36 | . . 36 Projectiles . | . . . Explosions 14 | . . 14 Melee 22 | . . 22 Knockbacks 2 | . . 2 Impact 2 | . . 2 Kinetic . | . . . Secondary . | . . . Self-Inflicted Damage 29 | . . 29 Shots 1 | . . 1 Rammed 2 | . . 2 Targets Rammed 3 | 1 . 2 Kicked 1 | 1 . . Crushed . | . . . Highest Temperature 81 | . 18 81 Average Temperature 18 | . 12 18 Received Heat Transfer 615 | . . 615 Siege Activations . | . . . Martial Activations . | . . . Shielding Activations . | . . . Robots Disrupted . | . . . Combat Hostiles . | . . . Robots Corrupted . | . . . Combat Hostiles . | . . . Parts Fried . | . . . Impact Corruptions 1 | . . 1 Robots Melted . | . . . Combat Hostiles . | . . . Parts Melted . | . . . Heat Transferred . | . . . Parts Sabotaged . | . . . Parts Stolen . | . . . Parts Stripped . | . . . Power Chain Reactions 2 | . . 2 Alert | -11 -10 -9 ------- Run | Yrd Mat Mat Maximum Alert Level . | . . . Low Security (%) 100 | 100 100 100 Level 1 . | . . . Level 2 . | . . . Level 3 . | . . . Level 4 . | . . . Level 5 . | . . . High Security . | . . . Max Security . | . . . Peak Influence 102 | . 12 102 Initial . | . . . Average 24 | . . 42 Influence Increases 465 | . 26 439 Destroy 0b10 Robot/C 320 | . . 320 Destroy Leader 80 | . . 80 Successful Hack 27 | . 26 1 Disable Machine 30 | . . 30 Destroy Structure 8 | . . 8 Influence Decreases 465 | . 26 439 Time Decay 353 | . 26 327 Lost Part 112 | . . 112 Squads Dispatched 2 | . . 2 Investigation 2 | . . 2 Extermination . | . . . Reinforcement . | . . . Assault . | . . . Garrison . | . . . Intercept . | . . . Searches Triggered . | . . . Construction Impeded . | . . . Haulers Reinforced . | . . . Active Scanning Responses . | . . . Cargo Convoy Interrupts . | . . . Stealth | -11 -10 -9 --------- Run | Yrd Mat Mat Distress Signals . | . . . Communications Jammed . | . . . Distress Signals . | . . . Times Spotted 21 | . 1 20 Peak Tracking Total 4 | . 1 4 Tactical Retreats . | . . . Traps | -11 -10 -9 ------- Run | Yrd Mat Mat Traps Triggered 1 | . . 1 Indirectly . | . . . Trap Hack Attempts . | . . . Triggered . | . . . Disarmed . | . . . Reprogrammed . | . . . Reused . | . . . Traps Extracted . | . . . Installed . | . . . Triggered . | . . . Machines | -11 -10 -9 ---------- Run | Yrd Mat Mat Machines Disabled 2 | . . 2 Max in Single Turn 2 | . . 2 Machines Repaired . | . . . Machines Dismantled . | . . . Machines Sabotaged . | . . . Overloaded Fab Kills . | . . . Hacking | -11 -10 -9 --------- Run | Yrd Mat Mat Machines Accessed 4 | . 2 2 Terminals 4 | . 2 2 Fabricators . | . . . Repair Stations . | . . . Recycling Units . | . . . Scanalyzers . | . . . Garrison Access . | . . . Total Hacks 16 | . 8 8 Successful 5 | . 3 2 Failed 11 | . 5 6 Catastrophic 1 | . 1 . Database Lockouts . | . . . Manual . | . . . Terminals 16 | . 8 8 Fabricators . | . . . Repair Stations . | . . . Recycling Units . | . . . Scanalyzers . | . . . Garrison Access . | . . . Terminal Hacks 5 | . 3 2 Record 1 | . . 1 Robot Analysis 1 | . . 1 Prototype ID Bank 1 | . 1 . Terminal Index 1 | . 1 . Registered Components 1 | . 1 . Fabricator Hacks . | . . . Repair Station Hacks . | . . . Recycling Unit Hacks . | . . . Scanalyzer . | . . . Garrison Access Hacks . | . . . Unauthorized Hacks . | . . . Terminals . | . . . Fabricators . | . . . Repair Stations . | . . . Recycling Units . | . . . Scanalyzers . | . . . Garrison Access . | . . . Data Cores Recovered . | . . . Used . | . . . Hacking Detections 4 | . 2 2 Full Trace Events 4 | . 2 2 Feedback Events . | . . . Feedback Blocked . | . . . Robot Schematics Acquired . | . . . Robots Built . | . . . Authchips . | . . . Time . | . . . Total Robot Build Rating . | . . . Part Schematics Acquired . | . . . Parts Built . | . . . Authchips . | . . . Time . | . . . Total Part Build Rating . | . . . Part Studies Acquired . | . . . Parts Repaired . | . . . Time . | . . . Parts Recycled . | . . . Recycled Matter . | . . . Retrieved Matter . | . . . Retrieved Components . | . . . Parts Scanalyzed . | . . . Part Schematics Acquired . | . . . Parts Damaged . | . . . Bothacking | -11 -10 -9 ------------ Run | Yrd Mat Mat Used RIF Installer . | . . . Robots Hacked . | . . . Non-combat . | . . . Combat . | . . . Robot Hacks Applied . | . . . Relay Couplers Released . | . . . Fabnet Peak Effective % . | . . . Robots Rewired . | . . . Allies Hacked . | . . . Hacks Repelled . | . . . Allies | -11 -10 -9 -------- Run | Yrd Mat Mat Total Allies . | . . . Largest Group . | . . . Highest-Rated Group . | . . . Highest-Rated Ally . | . . . Total Orders . | . . . Ally Attacks . | . . . Total Damage . | . . . Kills . | . . . Allies Corrupted . | . . . Allies Melted . | . . . Intel | -11 -10 -9 ------- Run | Yrd Mat Mat Active Infowar (turns) 1153 | . 394 759 Sensors 454 | . 166 288 Seismic 471 | . . 471 ECM 228 | . 228 . Robot Analysis Total 1 | . . 1 Derelict Logs Recovered . | . . . Drone Launches . | . . . Drone Recoveries . | . . . Exploration | -11 -10 -9 ------------- Run | Yrd Mat Mat Turns Passed 1391 | 128 444 819 Spaces Moved 770 | 101 316 353 Core 15 | 13 . 2 Treads 447 | . 96 351 Legs 308 | 88 220 . Wheels . | . . . Hover . | . . . Flight . | . . . Fastest Speed 50 | 50 120 160 Average Speed 143 | 110 132 162 Slowest Speed 400 | 120 160 400 Overloaded Moves . | . . . Propulsion Burnouts . | . . . Robots Hopped . | . . . Potential Cave-ins . | . . . Cave-ins Triggered . | . . . Exploration Rate (%) 24 | 5 42 26 Regions Visited 2 Branch Regions . Pre-discovered Areas . | . . . Known Exits Taken . | . . . Unknown Exits Taken 2 | 1 1 . Scrap Searched . | . . . Spaces Dug . | . . . Terrain Destroyed 6 | . . 6 Melee . | . . . Projectile . | . . . AOE 6 | . . 6 Terrain Rammed . | . . . Walls Destroyed . | . . . Machines Disabled . | . . . Actions | -11 -10 -9 --------- Run | Yrd Mat Mat Total 944 | 113 340 491 Wait 34 | . . 34 Move 768 | 100 315 353 Hop . | . . . Pick Up 27 | 5 13 9 Fast Attach 8 | 6 1 1 Attach 11 | . . 11 Detach 1 | . . 1 Swap 10 | 1 5 4 Drop 9 | . 5 4 Fire 72 | . 1 71 Melee 1 | . . 1 Ram . | . . . Kick 1 | 1 . . Crush 2 | . . 2 Escape Stasis . | . . . Rewire . | . . . Trap . | . . . Miscellaneous . | . . . Route ------- -11/Scrapyard -10/Materials (discovered 2 exits: *Mat x2) -9/Materials History --------- Turn | Location | Event 6 | -11/Scrapyard | Discovered new exit (range 13) 129 | -11/Scrapyard | Entered Materials 314 | -10/Materials | Build established: Mutant 339 | -10/Materials | Discovered new exit (range 3) 554 | -10/Materials | Discovered new exit (range 12) 573 | -10/Materials | Entered another Materials area 573 | -9/Materials | Evolved 2 slots: Propulsion x2 1312 | -9/Materials | Lost 5 parts (1p2n2w) 1365 | -9/Materials | Core integrity fell below 50% 1388 | -9/Materials | Core integrity fell below 20% 1392 | -9/Materials | Destroyed by S-10 Pest with Light Assault Rifle Last Messages --------------- 01302_ Acquired Lgt. Treads. 01303_ Sneak attack on K-01 Serf. 01303_ Destroyed Wheel. 01303_ K-01 Serf system corrupted by crushing effect. 01303_ K-01 Serf knocked back. 01306_ R-06 Scavenger collects Lgt. Armor Plating. 01329_ Acquired Beam Rifle. 01331_ Acquired 57 matter. 01336_ Acquired Lgt. Treads. 01340_ Acquired Heat Sink. 01350_ R-06 Scavenger collects Lgt. Treads. 01355_ Lgt. Treads destroyed. 01357_ R-06 Scavenger collects Heat Sink. 01364_ Lgt. Treads destroyed. 01373_ Seismic Detector destroyed. 01378_ EM Pulse Gun destroyed. 01379_ Lgt. Ion Engine destroyed. 01385_ Lgt. Treads destroyed. Map ----- +----------------------------------------------------+ | ???????# ## ######= #?????????????? | | ???????# #?# """ """ # [[ #?????????????? | | ???????# #?# """ """ # T%*#?????????????? | | ???????# #?# """ """ | # ! #?????????????? | | ######?# #?# # ## #?????????????? | | """ ### #############+## #### #?????????????? | | """ # #???????# #??# #?????????????? | | """ # ######### #??# #?????????????? | | + "% !*%[ % #??# #?????????????? | | # ##########/#######??# #?????????????? | | # #????# [% #????# #?????????????? | | ####### ####### = #????# #?????????????? | | ## # # " " #????# #?????????????? | | = ## + # """ """ #????# #?????????????? | | ## # # """ """=#????# #?????????????? | | """ ## # # [% ! #????# #?????????????? | | """ ## # # =* [=#????# #?????????????? | | """ ## # # #????# #?????????????? | | ####### + ################ ##???? #????? | | #######==[#######???# """ # % ## #????? | | ![=%#?????????# """ [ # ?? | | ########+#####??????# """ ss + ?? | | ???# !=% [ #??????# s # ?? | | ???# % =! #??????# !] # ##########+??? | | ???# ==[ #??????# ]= #######????????????? | | ???# [[ #??????# @]= #??????????????????? | | ???# ""#??????# Y #??????????????????? | | ???# T"#??????#### ######??????????????????? | | ???# ""#?????????##????????????????????????? | | ???# #???????????????????????????????????? | | ???###########???????????????????????????????????? | | | | | | | | | | | | | | | | | | | | | | | | | | | | | | | | | | | | | | | +----------------------------------------------------+ Best States ------------- Heat Dissipation 28 Energy Generation 14 Energy Capacity 250 Matter Stores 300 Matter Capacity 300 Sight Range 16 Robot Scan Range 14 Terrain Scan Density 10 ECM Strength 1 Evasion (%) 55 Recoil Reduction 4 Item Schematics ----------------- None Robot Schematics ------------------ None Fabricated ------------ Nothing Repaired ---------- Nothing Studied --------- None Alien Tech Used ----------------- None Achievements -------------- None Challenges ------------ None Game ------ Seed SmartLobotomyShotgun Manual? 0 Play Time 00:19:39 Cumulative 4.1 hours Start 2025.12.09 @ 04:05:05 End 2025.12.11 @ 01:14:36 Sessions 9 Manual Loads 0 Difficulty Rogue Special Mode None Game No. 7 Rogue 7 Adventurer 0 Explorer 0 Win Type - Total 0 Types 0/0/0/0/0/0/0/0/0/0 Lore% 6 Gallery% 6 Achievement% 9 Wizard Run 0 Options --------- Layout 1 ASCII 0 Keyboard 0 Movement Vi Keybinds 0 Fullscreen 1 Font 24/Cog Map View 50x40 Zoom Use 0% Tactical HUD 1 Map Filters NONE Filters NONE Steam 1 RUN: 86005c9d-754f-4c3f-a906-dee161a7a0b9